fUSD/lending_fUSD_20240708
["ID","MTS","AMOUNT","RATE_DAILY","PERIOD"]
[331457610,1720424830329,-500.0,0.00034038,32]
[331457611,1720424830369,-584.19,0.00034038,44]
[331457612,1720424830409,-1444.12,0.00034038,40]
[331457613,1720424830451,-500.0,0.00034038,31]
[331457614,1720424830498,-500.0,0.00034038,46]
[331457615,1720424830540,-542.71746627,0.00034038,33]
[331457616,1720424830587,-584.19,0.00034038,45]
[331457617,1720424830630,-1444.12,0.00034038,41]
[331457618,1720424830670,-500.0,0.00034038,47]
[331457619,1720424830717,-1391.77,0.00034038,30]
[331457620,1720424830756,-584.19,0.00034038,46]
[331457621,1720424830795,-1444.12,0.00034038,42]
[331457622,1720424830832,-635.63161843,0.00034038,32]
[331457623,1720424830870,-500.0,0.00034038,48]
[331457624,1720424830907,-1391.77,0.00034038,31]
[331457625,1720424830946,-584.19,0.00034038,47]
[331457626,1720424830986,-1444.12,0.00034038,43]
[331457627,1720424831023,-384.92193884,0.00034038,49]
[331457628,1720424831063,-1391.77,0.00034038,32]
[331457629,1720424831103,-1444.12,0.00034038,44]
[331457630,1720424831141,-584.19,0.00034038,48]
[331457631,1720424831181,-1391.77,0.00034038,33]
[331457632,1720424831223,-1444.12,0.00034038,45]
[331457633,1720424831262,-584.19,0.00034038,49]
[331457634,1720424831300,-1391.77,0.00034038,34]
[331457635,1720424831340,-584.19,0.00034038,50]
[331457636,1720424831379,-1444.12,0.00034038,46]
[331457637,1720424831419,-571.86,0.00034038,30]
[331457638,1720424831461,-1391.77,0.00034038,35]
[331457639,1720424831503,-1444.12,0.00034038,47]
[331457640,1720424831542,-584.19,0.00034038,51]
[331457641,1720424831806,-571.86,0.00034038,31]
[331457642,1720424831849,-844.36,0.00034038,30]
[331457643,1720424831889,-1391.77,0.00034038,36]
[331457644,1720424831930,-1444.12,0.00034038,48]
[331457645,1720424831970,-584.19,0.00034038,52]
[331457646,1720424832007,-571.86,0.00034038,32]
[331457647,1720424832048,-500.0,0.00034038,30]
[331457648,1720424832083,-844.36,0.00034038,31]
[331457649,1720424832118,-1391.77,0.00034038,37]
[331457650,1720424832153,-571.86,0.00034038,33]
[331457651,1720424832191,-500.0,0.00034038,31]
[331457652,1720424832230,-584.28532864,0.00034038,53]
[331457653,1720424832267,-1101.3,0.00034038,30]
[331457654,1720424832305,-844.36,0.00034038,32]
[331457655,1720424832342,-1444.12,0.00034038,49]
[331457656,1720424832378,-1391.77,0.00034038,38]
[331457657,1720424832417,-571.86,0.00034038,34]
[331457658,1720424832455,-495.29988901,0.00034038,32]
[331457659,1720424832496,-500.0,0.00034038,30]
[331457660,1720424832537,-1101.3,0.00034038,31]
[331457661,1720424832577,-1391.77,0.00034038,39]
[331457662,1720424832616,-1444.12,0.00034038,50]
[331457663,1720424832656,-844.36,0.00034038,33]
[331457664,1720424832698,-571.86,0.00034038,35]
[331457665,1720424832741,-500.0,0.00034038,31]
[331457666,1720424832780,-1101.3,0.00034038,32]
[331457667,1720424832819,-1391.77,0.00034038,40]
[331457668,1720424832858,-1444.12,0.00034038,51]
[331457669,1720424832899,-844.36,0.00034038,34]
[331457670,1720424832940,-571.86,0.00034038,36]
[331457671,1720424832982,-500.0,0.00034038,32]
[331457672,1720424833021,-1101.3,0.00034038,33]
[331457673,1720424833061,-1391.77,0.00034038,41]
[331457674,1720424833104,-844.36,0.00034038,35]
[331457675,1720424833146,-1444.12,0.00034038,52]
[331457676,1720424833194,-940.17,0.00034038,30]
[331457677,1720424833236,-571.86,0.00034038,37]
[331457678,1720424833279,-500.0,0.00034038,33]
[331457679,1720424833325,-844.36,0.00034038,36]
[331457680,1720424833371,-1391.77,0.00034038,42]
[331457681,1720424833413,-940.17,0.00034038,31]
[331457682,1720424833454,-1444.20467515,0.00034038,53]
[331457683,1720424833493,-571.86,0.00034038,38]
[331457684,1720424833534,-1101.3,0.00034038,34]
[331457685,1720424833578,-500.0,0.00034038,34]
[331457686,1720424833618,-844.36,0.00034038,37]
[331457687,1720424833657,-1391.77,0.00034038,43]
[331457688,1720424833697,-571.86,0.00034038,39]
[331457689,1720424833739,-940.17,0.00034038,32]
[331457690,1720424833780,-500.0,0.00034038,35]
[331457691,1720424833820,-844.36,0.00034038,38]
[331457692,1720424833859,-1391.77,0.00034038,44]
[331457693,1720424833901,-571.86,0.00034038,40]
[331457694,1720424833943,-940.17,0.00034038,33]
[331457695,1720424833986,-1101.3,0.00034038,35]
[331457696,1720424834025,-500.0,0.00034038,36]
[331457697,1720424834065,-844.36,0.00034038,39]
[331457698,1720424834106,-1391.77,0.00034038,45]
[331457699,1720424834145,-571.86,0.00034038,41]
[331457700,1720424834184,-940.17,0.00034038,34]
[331457701,1720424834225,-500.0,0.00034038,37]
[331457702,1720424834264,-844.36,0.00034038,40]
[331457703,1720424834304,-1391.77,0.00034038,46]
[331457704,1720424834345,-200.0,0.00034038,30]
[331457705,1720424834385,-571.86,0.00034038,42]
[331457706,1720424834424,-940.17,0.00034038,35]
[331457707,1720424834466,-500.0,0.00034038,38]
[331457708,1720424834505,-844.36,0.00034038,41]
[331457709,1720424834543,-1391.77,0.00034038,47]
[331457710,1720424834580,-200.0,0.00034038,31]
[331457711,1720424834618,-500.0,0.00034038,30]
[331457712,1720424834657,-571.86,0.00034038,43]
[331457713,1720424834695,-940.17,0.00034038,36]
[331457714,1720424834742,-500.0,0.00034038,39]
[331457715,1720424834783,-844.36,0.00034038,42]
[331457716,1720424834831,-1391.77,0.00034038,48]
[331457717,1720424834872,-200.0,0.00034038,32]
[331457718,1720424834916,-571.86,0.00034038,44]
[331457719,1720424834956,-940.17,0.00034038,37]
[331457720,1720424834997,-500.0,0.00034038,31]
[331457721,1720424835035,-500.0,0.00034038,40]
[331457722,1720424835074,-844.36,0.00034038,43]
[331457723,1720424835115,-1391.77,0.00034038,49]
[331457724,1720424835155,-200.0,0.00034038,33]
[331457725,1720424835194,-571.86,0.00034038,45]
[331457726,1720424835233,-940.17,0.00034038,38]
[331457727,1720424835273,-500.0,0.00034038,32]
[331457728,1720424835310,-844.36,0.00034038,44]
[331457729,1720424835351,-1391.77,0.00034038,50]
[331457730,1720424835389,-571.86,0.00034038,46]
[331457731,1720424835431,-940.17,0.00034038,39]
[331457732,1720424835472,-500.0,0.00034038,33]
[331457733,1720424835509,-844.36,0.00034038,45]
[331457734,1720424835545,-500.0,0.00034038,41]
[331457735,1720424835587,-571.86,0.00034038,47]
[331457736,1720424835626,-1391.77,0.00034038,51]
[331457737,1720424835665,-500.0,0.00034038,34]
[331457738,1720424835705,-500.0,0.00034038,42]
[331457739,1720424835746,-571.86,0.00034038,48]
[331457740,1720424835785,-1391.77,0.00034038,52]
[331457741,1720424835824,-844.36,0.00034038,46]
[331457742,1720424835864,-500.0,0.00034038,35]
[331457743,1720424835907,-940.17,0.00034038,40]
[331457744,1720424835946,-500.0,0.00034038,43]
[331457745,1720424836183,-571.86,0.00034038,49]
[331457746,1720424836225,-844.36,0.00034038,47]
[331457747,1720424836263,-1391.81430149,0.00034038,53]
[331457748,1720424836306,-500.0,0.00034038,36]
[331457749,1720424836344,-940.17,0.00034038,41]
[331457750,1720424836384,-500.0,0.00034038,44]
[331457751,1720424836424,-571.86,0.00034038,50]
[331457752,1720424836463,-844.36,0.00034038,48]
[331457753,1720424836502,-500.0,0.00034038,37]
[331457754,1720424836541,-940.17,0.00034038,42]
[331457755,1720424836579,-500.0,0.00034038,45]
[331457756,1720424836618,-571.86,0.00034038,51]
[331457757,1720424836657,-844.36,0.00034038,49]
[331457758,1720424836695,-500.0,0.00034038,38]
[331457759,1720424836733,-940.17,0.00034038,43]
[331457760,1720424836771,-500.0,0.00034038,46]
[331457761,1720424836810,-571.86,0.00034038,52]
[331457762,1720424836848,-500.0,0.00034038,39]
[331457763,1720424836886,-844.36,0.00034038,50]
[331457764,1720424836931,-940.17,0.00034038,44]
[331457765,1720424836974,-500.0,0.00034038,47]
[331457766,1720424837022,-571.93737508,0.00034038,53]
[331457767,1720424837061,-844.36,0.00034038,51]
[331457768,1720424837101,-500.0,0.00034038,40]
[331457769,1720424837140,-940.17,0.00034038,45]
[331457770,1720424837180,-500.0,0.00034038,48]
[331457771,1720424837222,-844.36,0.00034038,52]
[331457772,1720424837263,-500.0,0.00034038,41]
[331457773,1720424837304,-940.17,0.00034038,46]
[331457774,1720424837346,-500.0,0.00034038,49]
[331457775,1720424837388,-1101.3,0.00034038,36]
[331457776,1720424837428,-844.38649801,0.00034038,53]
[331457777,1720424837471,-500.0,0.00034038,42]
[331457778,1720424837520,-190.5526193,0.00034038,50]
[331457779,1720424837561,-1101.3,0.00034038,37]
[331457780,1720424837600,-940.17,0.00034038,47]
[331457781,1720424837640,-347.04950154,0.00034038,43]
[331457782,1720424837681,-200.0,0.00034038,34]
[331457783,1720424837723,-1101.3,0.00034038,38]
[331457784,1720424837770,-200.0,0.00034038,35]
[331457785,1720424837818,-1101.3,0.00034038,39]
[331457786,1720424837864,-940.17,0.00034038,48]
[331457787,1720424837912,-1250.0,0.00034038,30]
[331457788,1720424837960,-200.0,0.00034038,36]
[331457789,1720424838008,-1101.3,0.00034038,40]
[331457790,1720424838055,-940.17,0.00034038,49]
[331457791,1720424838103,-1250.0,0.00034038,31]
[331457792,1720424838149,-4993.4,0.00034038,30]
[331457793,1720424838190,-200.65466176,0.00034038,37]
[331457794,1720424838229,-1101.3,0.00034038,41]
[331457795,1720424838267,-940.17,0.00034038,50]
[331457796,1720424838307,-1250.0,0.00034038,32]
[331457797,1720424838349,-4993.4,0.00034038,31]
[331457798,1720424838389,-1101.3,0.00034038,42]
[331457799,1720424838429,-940.17,0.00034038,51]
[331457800,1720424838474,-1250.0,0.00034038,33]
[331457801,1720424838517,-4993.4,0.00034038,32]
[331457802,1720424838558,-1101.3,0.00034038,43]
[331457803,1720424838596,-1250.0,0.00034038,34]
[331457804,1720424838634,-1101.3,0.00034038,44]
[331457805,1720424838672,-1250.0,0.00034038,35]
[331457806,1720424838715,-940.17,0.00034038,52]
[331457807,1720424838754,-1228.92,0.00034038,30]
[331457808,1720424838793,-507.24717195,0.00034038,30]
[331457809,1720424838834,-1101.3,0.00034038,45]
[331457810,1720424838873,-940.39807536,0.00034038,53]
[331457811,1720424838916,-1250.0,0.00034038,36]
[331457812,1720424838956,-1228.92,0.00034038,31]
[331457813,1720424838998,-500.0,0.00034038,30]
[331457814,1720424839039,-1101.3,0.00034038,46]
[331457815,1720424839080,-1250.0,0.00034038,37]
[331457816,1720424839124,-1228.92,0.00034038,32]
[331457817,1720424839166,-500.0,0.00034038,31]
[331457818,1720424839207,-1101.3,0.00034038,47]
[331457819,1720424839249,-1250.0,0.00034038,38]
[331457820,1720424839291,-1228.92,0.00034038,33]
[331457821,1720424839335,-500.0,0.00034038,32]
[331457822,1720424839377,-1250.0,0.00034038,39]
[331457823,1720424839417,-1101.3,0.00034038,48]
[331457824,1720424839460,-1228.92,0.00034038,34]
[331457825,1720424839503,-497.96675821,0.00034038,30]
[331457826,1720424839549,-1250.0,0.00034038,40]
[331457827,1720424839590,-1101.3,0.00034038,49]
[331457828,1720424839632,-1228.92,0.00034038,35]
[331457829,1720424839673,-500.0,0.00034038,33]
[331457830,1720424839714,-1250.0,0.00034038,41]
[331457831,1720424839755,-1101.3,0.00034038,50]
[331457832,1720424839796,-1228.92,0.00034038,36]
[331457833,1720424839845,-500.0,0.00034038,34]
[331457834,1720424839887,-1250.0,0.00034038,42]
[331457835,1720424839931,-1101.3,0.00034038,51]
[331457836,1720424839974,-1228.92,0.00034038,37]
[331457837,1720424840016,-500.0,0.00034038,35]
[331457838,1720424840055,-1549.52,0.00034038,30]
[331457839,1720424840095,-1250.0,0.00034038,43]
[331457840,1720424840146,-1101.3,0.00034038,52]
[331457841,1720424840187,-1228.92,0.00034038,38]
[331457842,1720424840229,-2728.74,0.00034038,30]
[331457843,1720424840269,-347.29179737,0.00034038,36]
[331457844,1720424840309,-1250.0,0.00034038,44]
[331457845,1720424840349,-1549.52,0.00034038,31]
[331457846,1720424840390,-1101.52119768,0.00034038,53]
[331457847,1720424840429,-2728.74,0.00034038,31]
[331457848,1720424840470,-1228.92,0.00034038,39]
[331457849,1720424840839,-795.49,0.00034038,30]
[331457850,1720424840880,-1549.52,0.00034038,32]
[331457851,1720424840922,-2728.74,0.00034038,32]
[331457852,1720424840964,-795.49,0.00034038,31]
[331457853,1720424841006,-1250.0,0.00034038,45]
[331457854,1720424841049,-1549.52,0.00034038,33]
[331457855,1720424841088,-1228.92,0.00034038,40]
[331457856,1720424841126,-500.0,0.00034038,30]
[331457857,1720424841168,-2728.74,0.00034038,33]
[331457858,1720424841208,-795.49,0.00034038,32]
[331457859,1720424841252,-1250.0,0.00034038,46]
[331457860,1720424841291,-500.0,0.00034038,30]
[331457861,1720424841330,-1228.92,0.00034038,41]
[331457862,1720424841368,-500.0,0.00034038,31]
[331457863,1720424841406,-1549.52,0.00034038,34]
[331457864,1720424841446,-2728.74,0.00034038,34]
[331457865,1720424841487,-795.49,0.00034038,33]
[331457866,1720424841526,-4993.4,0.00034038,33]
[331457867,1720424841566,-1250.0,0.00034038,47]
[331457868,1720424841611,-500.0,0.00034038,31]
[331457869,1720424841652,-1228.92,0.00034038,42]
[331457870,1720424841694,-1549.52,0.00034038,35]
[331457871,1720424841736,-568.68000698,0.00034038,32]
[331457872,1720424841778,-2728.74,0.00034038,35]
[331457873,1720424841818,-4993.4,0.00034038,34]
[331457874,1720424841858,-1250.0,0.00034038,48]
[331457875,1720424841898,-795.49,0.00034038,34]
[331457876,1720424841941,-503.42251158,0.00034038,32]
[331457877,1720424841983,-1228.92,0.00034038,43]
[331457878,1720424842022,-1549.52,0.00034038,36]
[331457879,1720424842063,-2728.74,0.00034038,36]
[331457881,1720424842104,-4993.4,0.00034038,35]
[331457884,1720424842143,-1250.0,0.00034038,49]
[331457887,1720424842181,-1228.92,0.00034038,44]
[331457890,1720424842222,-1549.52,0.00034038,37]
[331457893,1720424842263,-2728.74,0.00034038,37]
[331457896,1720424842304,-4993.4,0.00034038,36]
[331457897,1720424842345,-795.49,0.00034038,35]
[331457898,1720424842384,-1250.0,0.00034038,50]
[331457899,1720424842422,-1228.92,0.00034038,45]
[331457900,1720424842461,-1549.52,0.00034038,38]
[331457901,1720424842501,-1552.19,0.00034038,30]
[331457902,1720424842538,-4993.4,0.00034038,37]
[331457903,1720424842575,-795.49,0.00034038,36]
[331457904,1720424842613,-1549.52,0.00034038,39]
[331457905,1720424842650,-1228.92,0.00034038,46]
[331457906,1720424842688,-1552.19,0.00034038,31]
[331457907,1720424842726,-2728.74,0.00034038,38]
[331457908,1720424842765,-4993.4,0.00034038,38]
[331457909,1720424842803,-795.49,0.00034038,37]
[331457910,1720424842843,-1250.0,0.00034038,51]
[331457911,1720424842882,-1549.52,0.00034038,40]
[331457912,1720424842920,-1228.92,0.00034038,47]
[331457913,1720424842961,-1552.19,0.00034038,32]
[331457914,1720424843003,-2728.74,0.00034038,39]
[331457915,1720424843041,-4993.4,0.00034038,39]
[331457916,1720424843082,-1250.0,0.00034038,52]
[331457917,1720424843117,-795.49,0.00034038,38]
[331457918,1720424843152,-1549.52,0.00034038,41]
[331457919,1720424843188,-1228.92,0.00034038,48]
[331457920,1720424843227,-500.0,0.00034038,30]
[331457921,1720424843261,-1552.19,0.00034038,33]
[331457922,1720424843297,-4993.4,0.00034038,40]
[331457923,1720424843334,-795.49,0.00034038,39]
[331457924,1720424843370,-1549.52,0.00034038,42]
[331457925,1720424843406,-1228.92,0.00034038,49]
[331457926,1720424843444,-500.0,0.00034038,31]
[331457927,1720424843483,-1552.19,0.00034038,34]
[331457928,1720424843520,-2728.74,0.00034038,40]
[331457929,1720424843557,-527.16983167,0.00034038,30]
[331457930,1720424843594,-795.49,0.00034038,40]
[331457931,1720424843630,-1250.0,0.00034038,53]
[331457932,1720424843668,-1549.52,0.00034038,43]
[331457933,1720424843708,-1228.92,0.00034038,50]
[331457934,1720424843744,-558.13419944,0.00034038,30]
[331457935,1720424843779,-500.0,0.00034038,32]
[331457936,1720424843813,-4993.4,0.00034038,41]
[331457937,1720424843846,-1552.19,0.00034038,35]
[331457938,1720424843881,-2728.74,0.00034038,41]
[331457939,1720424843915,-1549.52,0.00034038,44]
[331457940,1720424843950,-1228.92,0.00034038,51]
[331457941,1720424843985,-4993.4,0.00034038,42]
[331457942,1720424844018,-2728.74,0.00034038,42]
[331457943,1720424844056,-1228.92,0.00034038,52]
[331457944,1720424844091,-1549.52,0.00034038,45]
[331457945,1720424844127,-795.49,0.00034038,41]
[331457946,1720424844164,-500.0,0.00034038,33]
[331457947,1720424844203,-4993.4,0.00034038,43]
[331457948,1720424844239,-1552.19,0.00034038,36]
[331457949,1720424844276,-2728.74,0.00034038,43]
[331457950,1720424844314,-1228.99603883,0.00034038,53]
[331457951,1720424844351,-1549.52,0.00034038,46]
[331457952,1720424844387,-795.49,0.00034038,42]
[331457953,1720424844423,-4993.4,0.00034038,44]
[331457954,1720424844458,-500.0,0.00034038,34]
[331457955,1720424844495,-1552.19,0.00034038,37]
[331457956,1720424844531,-2728.74,0.00034038,44]
[331457957,1720424844567,-1549.52,0.00034038,47]
[331457958,1720424844603,-500.0,0.00034038,35]
[331457959,1720424844638,-1552.19,0.00034038,38]
[331457960,1720424844673,-2728.74,0.00034038,45]
[331457961,1720424844709,-795.49,0.00034038,43]
[331457962,1720424844745,-4993.4,0.00034038,45]
[331457963,1720424844782,-1549.52,0.00034038,48]
[331457964,1720424845076,-1552.19,0.00034038,39]
[331457966,1720424845113,-2728.74,0.00034038,46]
[331457967,1720424845148,-795.49,0.00034038,44]
[331457968,1720424845188,-2728.74,0.00034038,47]
[331457969,1720424845228,-1552.19,0.00034038,40]
[331457970,1720424845263,-500.0,0.00034038,36]
[331457971,1720424845300,-795.49,0.00034038,45]
[331457972,1720424845337,-4993.4,0.00034038,46]
[331457973,1720424845374,-1549.52,0.00034038,49]
[331457974,1720424845409,-1552.19,0.00034038,41]
[331457975,1720424845447,-500.0,0.00034038,37]
[331457976,1720424845483,-795.49,0.00034038,46]
[331457977,1720424845518,-4993.4,0.00034038,47]
[331457978,1720424845553,-1549.52,0.00034038,50]
[331457979,1720424845590,-500.0,0.00034038,30]
[331457980,1720424845625,-500.0,0.00034038,38]
[331457981,1720424845660,-1552.19,0.00034038,42]
[331457982,1720424845697,-2728.74,0.00034038,48]
[331457983,1720424845734,-795.49,0.00034038,47]
[331457984,1720424845771,-4993.4,0.00034038,48]
[331457985,1720424845809,-1549.52,0.00034038,51]
[331457986,1720424845846,-500.0,0.00034038,31]
[331457987,1720424845884,-500.0,0.00034038,39]
[331457988,1720424845921,-1552.19,0.00034038,43]
[331457989,1720424845957,-795.49,0.00034038,48]
[331457990,1720424845995,-4993.4,0.00034038,49]
[331457991,1720424846034,-1549.52,0.00034038,52]
[331457992,1720424846070,-500.0,0.00034038,32]
[331457993,1720424846108,-1552.19,0.00034038,44]
[331457994,1720424846144,-500.0,0.00034038,40]
[331457995,1720424846180,-795.49,0.00034038,49]
[331457996,1720424846217,-4993.4,0.00034038,50]
[331457997,1720424846253,-2728.74,0.00034038,49]
[331457998,1720424846291,-1274.94,0.00034038,30]
[331457999,1720424846327,-500.0,0.00034038,33]
[331458000,1720424846365,-1552.19,0.00034038,45]
[331458001,1720424846401,-1549.73930897,0.00034038,53]
[331458002,1720424846436,-500.0,0.00034038,41]
[331458003,1720424846472,-795.49,0.00034038,50]
[331458004,1720424846507,-500.0,0.00034038,34]
[331458005,1720424846542,-312.24219309,0.00034038,42]
[331458006,1720424846578,-1552.19,0.00034038,46]
[331458007,1720424846613,-2728.74,0.00034038,50]
[331458008,1720424846650,-1274.94,0.00034038,31]
[331458009,1720424846686,-4993.4,0.00034038,51]
[331458010,1720424846723,-795.49,0.00034038,51]
[331458011,1720424846757,-1552.19,0.00034038,47]
[331458012,1720424846791,-1274.94,0.00034038,32]
[331458013,1720424846825,-4993.4,0.00034038,52]
[331458014,1720424846859,-2728.74,0.00034038,51]
[331458015,1720424846892,-500.0,0.00034038,35]
[331458016,1720424846926,-795.49,0.00034038,52]
[331458017,1720424846961,-4993.4452794,0.00034038,53]
[331458018,1720424846996,-1205.65,0.00034038,30]
[331458019,1720424847030,-1552.19,0.00034038,48]
[331458020,1720424847066,-500.0,0.00034038,30]
[331458021,1720424847101,-500.0,0.00034038,36]
[331458022,1720424847134,-1205.65,0.00034038,31]
[331458023,1720424847169,-1552.19,0.00034038,49]
[331458024,1720424847205,-500.0,0.00034038,30]
[331458025,1720424847239,-795.68592801,0.00034038,53]
[331458026,1720424847274,-500.0,0.00034038,31]
[331458027,1720424847309,-500.0,0.00034038,37]
[331458028,1720424847343,-2728.74,0.00034038,52]
[331458029,1720424847378,-1274.94,0.00034038,33]
[331458030,1720424847412,-1205.65,0.00034038,32]
[331458031,1720424847448,-1552.19,0.00034038,50]
[331458032,1720424847483,-500.0,0.00034038,32]
[331458033,1720424847518,-500.0,0.00034038,38]
[331458034,1720424847551,-500.0,0.00034038,31]
[331458035,1720424847585,-2728.95425057,0.00034038,53]
[331458036,1720424847620,-1274.94,0.00034038,34]
[331458037,1720424847655,-1205.65,0.00034038,33]
[331458038,1720424847689,-354.96,0.00034038,33]
[331458039,1720424847736,-500.0,0.00034038,32]
[331458040,1720424847769,-500.0,0.00034038,39]
[331458041,1720424847803,-1552.19,0.00034038,51]
[331458042,1720424847836,-1274.94,0.00034038,35]
[331458043,1720424847869,-1205.65,0.00034038,34]
[331458044,1720424847904,-500.0,0.00034038,40]
[331458045,1720424847937,-500.0,0.00034038,33]
[331458046,1720424847972,-1552.19,0.00034038,52]
[331458047,1720424848008,-1274.94,0.00034038,36]
[331458048,1720424848044,-1205.65,0.00034038,35]
[331458049,1720424848077,-500.0,0.00034038,34]
[331458050,1720424848111,-500.0,0.00034038,41]
[331458051,1720424848144,-1552.40939601,0.00034038,53]
[331458052,1720424848178,-1274.94,0.00034038,37]
[331458053,1720424848213,-1205.65,0.00034038,36]
[331458054,1720424848252,-500.0,0.00034038,42]
[331458055,1720424848287,-500.0,0.00034038,35]
[331458056,1720424848321,-502.9497028,0.00034038,30]
[331458057,1720424848354,-500.0,0.00034038,36]
[331458058,1720424848390,-1274.94,0.00034038,38]
[331458059,1720424848424,-1205.65,0.00034038,37]
[331458060,1720424848462,-516.59278076,0.00034038,43]
[331458061,1720424848496,-500.0,0.00034038,37]
[331458062,1720424848531,-1274.94,0.00034038,39]
[331458063,1720424848566,-1205.65,0.00034038,38]
[331458064,1720424848601,-500.0,0.00034038,38]
[331458065,1720424848635,-1274.94,0.00034038,40]
[331458066,1720424848671,-1205.65,0.00034038,39]
[331458067,1720424848706,-500.0,0.00034038,39]
[331458068,1720424848741,-1274.94,0.00034038,41]
[331458069,1720424848994,-1205.65,0.00034038,40]
[331458070,1720424849033,-500.0,0.00034038,30]
[331458071,1720424849071,-500.0,0.00034038,40]
[331458072,1720424849110,-1274.94,0.00034038,42]
[331458073,1720424849150,-1205.65,0.00034038,41]
[331458074,1720424849188,-500.0,0.00034038,31]
[331458075,1720424849226,-500.0,0.00034038,41]
[331458076,1720424849264,-500.0,0.00034038,30]
[331458077,1720424849302,-1274.94,0.00034038,43]
[331458078,1720424849342,-1205.65,0.00034038,42]
[331458079,1720424849383,-500.0,0.00034038,32]
[331458080,1720424849423,-500.0,0.00034038,42]
[331458081,1720424849462,-500.0,0.00034038,31]
[331458082,1720424849499,-1274.94,0.00034038,44]
[331458083,1720424849535,-1205.65,0.00034038,43]
[331458084,1720424849571,-502.657702,0.00034038,30]
[331458085,1720424849607,-500.0,0.00034038,33]
[331458086,1720424849643,-500.0,0.00034038,43]
[331458087,1720424849680,-500.0,0.00034038,32]
[331458088,1720424849718,-1205.65,0.00034038,44]
[331458089,1720424849755,-500.0,0.00034038,44]
[331458090,1720424849792,-500.0,0.00034038,33]
[331458091,1720424849828,-1274.94,0.00034038,45]
[331458092,1720424849865,-1205.65,0.00034038,45]
[331458093,1720424849901,-500.0,0.00034038,45]
[331458094,1720424849943,-500.0,0.00034038,34]
[331458095,1720424849987,-1205.65,0.00034038,46]
[331458096,1720424850026,-1274.94,0.00034038,46]
[331458097,1720424850062,-500.0,0.00034038,46]
[331458098,1720424850097,-500.0,0.00034038,35]
[331458099,1720424850132,-500.0,0.00034038,30]
[331458100,1720424850167,-1274.94,0.00034038,47]
[331458101,1720424850207,-500.0,0.00034038,47]
[331458102,1720424850244,-500.0,0.00034038,36]
[331458103,1720424850284,-500.0,0.00034038,31]
[331458104,1720424850322,-1205.65,0.00034038,47]
[331458105,1720424850363,-1274.94,0.00034038,48]
[331458106,1720424850402,-500.0,0.00034038,48]
[331458107,1720424850442,-500.0,0.00034038,37]
[331458108,1720424850482,-500.0,0.00034038,32]
[331458109,1720424850519,-1205.65,0.00034038,48]
[331458110,1720424850557,-1274.94,0.00034038,49]
[331458111,1720424850594,-500.0,0.00034038,49]
[331458112,1720424850631,-500.0,0.00034038,38]
[331458113,1720424850668,-500.0,0.00034038,33]
[331458114,1720424850706,-500.0,0.00034038,30]
[331458115,1720424850743,-1274.94,0.00034038,50]
[331458116,1720424850778,-500.0,0.00034038,34]
[331458117,1720424850814,-1205.65,0.00034038,49]
[331458118,1720424850850,-162.02950201,0.00034038,31]
[331458119,1720424850884,-1274.94,0.00034038,51]
[331458120,1720424850920,-1023.57,0.00034038,30]
[331458121,1720424850957,-500.0,0.00034038,39]